[Event "Titled Tuesday Blitz August 17 2021"]
[White "Slavin, Alexey"]
[Black "Mladek, Richard"]
[WhiteFideId "24104388"]
[BlackFideId "386588"]
[WhiteElo "2262"]
[BlackElo "2355"]
[Result "0-1"]
[Round "06"]
[TimeControl "180+1"]
[Date "2021.08.18"]
[WhiteClock "0:00:02"]
[BlackClock "0:00:31"]

1. e4 {[%clk 0:02:43]}  c5 {[%clk 0:02:56]} 2. g3 {[%clk 0:02:42]}  Nf6 {[%clk 0:02:53]} 3. Bg2 {[%clk 0:02:42]}  Nc6 {[%clk 0:02:48]} 4. Ne2 {[%clk 0:02:42]}  d5 {[%clk 0:02:46]} 5. exd5 {[%clk 0:02:41]}  Nxd5 {[%clk 0:02:46]} 6. Nbc3 {[%clk 0:02:41]}  Nc7 {[%clk 0:02:44]} 7. O-O {[%clk 0:02:39]}  e5 {[%clk 0:02:37]} 8. d3 {[%clk 0:02:38]}  Be7 {[%clk 0:02:37]} 9. f4 {[%clk 0:02:16]}  exf4 {[%clk 0:02:22]} 10. Bxf4 {[%clk 0:02:11]}  O-O {[%clk 0:02:20]} 11. Kh1 {[%clk 0:02:09]}  Bg4 {[%clk 0:02:11]} 12. Qd2 {[%clk 0:02:04]}  Ne6 {[%clk 0:02:09]} 13. Be3 {[%clk 0:01:59]}  Qd7 {[%clk 0:02:08]} 14. Rae1 {[%clk 0:01:57]}  Rae8 {[%clk 0:02:06]} 15. Nf4 {[%clk 0:01:56]}  Ned4 {[%clk 0:01:58]} 16. Nfd5 {[%clk 0:01:48]}  Bd6 {[%clk 0:01:56]} 17. Ne4 {[%clk 0:01:46]}  b6 {[%clk 0:01:53]} 18. Nxd6 {[%clk 0:01:44]}  Qxd6 {[%clk 0:01:53]} 19. c3 {[%clk 0:01:44]}  Nf5 {[%clk 0:01:43]} 20. Bf4 {[%clk 0:01:43]}  Qd7 {[%clk 0:01:39]} 21. Nc7 {[%clk 0:01:24]}  Rc8 {[%clk 0:01:35]} 22. Nd5 {[%clk 0:01:14]}  Rfe8 {[%clk 0:01:25]} 23. Ne3 {[%clk 0:01:00]}  Nxe3 {[%clk 0:01:24]} 24. Rxe3 {[%clk 0:01:00]}  Bh3 {[%clk 0:01:22]} 25. Rfe1 {[%clk 0:00:50]}  Bxg2+ {[%clk 0:01:21]} 26. Qxg2 {[%clk 0:00:48]}  h6 {[%clk 0:01:21]} 27. Qe2 {[%clk 0:00:42]}  Rxe3 {[%clk 0:01:21]} 28. Qxe3 {[%clk 0:00:43]}  Qd5+ {[%clk 0:01:21]} 29. Kg1 {[%clk 0:00:42]}  Qxa2 {[%clk 0:01:21]} 30. Re2 {[%clk 0:00:41]}  Qd5 {[%clk 0:01:21]} 31. h4 {[%clk 0:00:30]}  Rd8 {[%clk 0:01:21]} 32. Rd2 {[%clk 0:00:21]}  Qd7 {[%clk 0:01:21]} 33. Kg2 {[%clk 0:00:20]}  Ne7 {[%clk 0:01:22]} 34. Qe5 {[%clk 0:00:20]}  Ng6 {[%clk 0:01:21]} 35. Qe4 {[%clk 0:00:19]}  Re8 {[%clk 0:01:21]} 36. Qf3 {[%clk 0:00:19]}  Qf5 {[%clk 0:01:20]} 37. d4 {[%clk 0:00:18]}  cxd4 {[%clk 0:01:14]} 38. cxd4 {[%clk 0:00:18]}  Rd8 {[%clk 0:01:11]} 39. Bc7 {[%clk 0:00:12]}  Qxf3+ {[%clk 0:01:06]} 40. Kxf3 {[%clk 0:00:11]}  Rd7 {[%clk 0:01:07]} 41. Bb8 {[%clk 0:00:11]}  Ne7 {[%clk 0:01:05]} 42. Ke4 {[%clk 0:00:11]}  f5+ {[%clk 0:01:03]} 43. Ke5 {[%clk 0:00:09]}  Nc6+ {[%clk 0:01:04]} 44. Ke6 {[%clk 0:00:09]}  Nxb8 {[%clk 0:01:04]} 45. d5 {[%clk 0:00:09]}  Kf8 {[%clk 0:01:00]} 46. Rc2 {[%clk 0:00:09]}  Ke8 {[%clk 0:00:59]} 47. Rc8+ {[%clk 0:00:08]}  Rd8 {[%clk 0:00:59]} 48. Rc7 {[%clk 0:00:08]}  Nd7 {[%clk 0:01:00]} 49. d6 {[%clk 0:00:07]}  Nc5+ {[%clk 0:00:56]} 50. Kd5 {[%clk 0:00:07]}  Rd7 {[%clk 0:00:56]} 51. Rc8+ {[%clk 0:00:07]}  Kf7 {[%clk 0:00:57]} 52. Kc6 {[%clk 0:00:06]}  a5 {[%clk 0:00:53]} 53. Rc7 {[%clk 0:00:07]}  Ke6 {[%clk 0:00:53]} 54. Kxb6 {[%clk 0:00:03]}  Kxd6 {[%clk 0:00:45]} 55. Rc6+ {[%clk 0:00:03]}  Kd5 {[%clk 0:00:40]} 56. Rxc5+ {[%clk 0:00:03]}  Ke4 {[%clk 0:00:41]} 57. Rxa5 {[%clk 0:00:03]}  Rd3 {[%clk 0:00:41]} 58. b4 {[%clk 0:00:03]}  Rxg3 {[%clk 0:00:40]} 59. b5 {[%clk 0:00:03]}  Rb3 {[%clk 0:00:39]} 60. Ra4+ {[%clk 0:00:03]}  Kf3 {[%clk 0:00:37]} 61. Kc6 {[%clk 0:00:03]}  Kg3 {[%clk 0:00:37]} 62. h5 {[%clk 0:00:04]}  f4 {[%clk 0:00:36]} 63. b6 {[%clk 0:00:04]}  f3 {[%clk 0:00:37]} 64. Ra5 {[%clk 0:00:01]}  f2 {[%clk 0:00:33]} 65. Rf5 {[%clk 0:00:02]}  Rf3 {[%clk 0:00:31]} 0-1


[Site "https://www.chess.com"]

[Event "Titled Tuesday Blitz August 17 2021"]
[White "Sokolin, Leonid"]
[Black "Bacrot, Etienne"]
[WhiteFideId "2009161"]
[BlackFideId "605506"]
[WhiteElo "2394"]
[BlackElo "2673"]
[Result "0-1"]
[Round "06"]
[TimeControl "180+1"]
[Date "2021.08.17"]
[WhiteClock "0:00:02"]
[BlackClock "0:00:14"]

1. e4 {[%clk 0:01:48]}  c5 {[%clk 0:02:59]} 2. Nf3 {[%clk 0:01:47]}  d6 {[%clk 0:02:59]} 3. Bb5+ {[%clk 0:01:47]}  Bd7 {[%clk 0:02:59]} 4. Bxd7+ {[%clk 0:01:46]}  Qxd7 {[%clk 0:02:58]} 5. c4 {[%clk 0:01:46]}  e5 {[%clk 0:02:58]} 6. O-O {[%clk 0:01:45]}  Nc6 {[%clk 0:02:57]} 7. a3 {[%clk 0:01:46]}  Be7 {[%clk 0:02:53]} 8. Nc3 {[%clk 0:01:45]}  Bd8 {[%clk 0:02:52]} 9. Nd5 {[%clk 0:01:45]}  Nge7 {[%clk 0:02:51]} 10. d3 {[%clk 0:01:45]}  O-O {[%clk 0:02:50]} 11. b4 {[%clk 0:01:44]}  cxb4 {[%clk 0:02:46]} 12. Nxb4 {[%clk 0:01:42]}  f5 {[%clk 0:02:44]} 13. exf5 {[%clk 0:01:40]}  Nxf5 {[%clk 0:02:43]} 14. Bb2 {[%clk 0:01:39]}  Bb6 {[%clk 0:02:39]} 15. Nd5 {[%clk 0:01:38]}  Bc5 {[%clk 0:02:38]} 16. Qd2 {[%clk 0:01:32]}  Rf7 {[%clk 0:02:36]} 17. Rae1 {[%clk 0:01:28]}  h6 {[%clk 0:02:34]} 18. Re2 {[%clk 0:01:27]}  Raf8 {[%clk 0:02:34]} 19. a4 {[%clk 0:01:26]}  Qd8 {[%clk 0:02:21]} 20. Bc3 {[%clk 0:01:23]}  g5 {[%clk 0:02:13]} 21. Re4 {[%clk 0:01:17]}  Nh4 {[%clk 0:01:52]} 22. Rxh4 {[%clk 0:01:09]}  gxh4 {[%clk 0:01:51]} 23. Qxh6 {[%clk 0:01:09]}  Rh7 {[%clk 0:01:49]} 24. Qe6+ {[%clk 0:01:08]}  Kh8 {[%clk 0:01:43]} 25. h3 {[%clk 0:01:00]}  Qc8 {[%clk 0:01:17]} 26. Qg6 {[%clk 0:00:51]}  Rxf3 {[%clk 0:01:14]} 27. Nf6 {[%clk 0:00:44]}  Rxf6 {[%clk 0:01:05]} 28. Qxf6+ {[%clk 0:00:44]}  Kg8 {[%clk 0:01:05]} 29. Re1 {[%clk 0:00:40]}  Qf8 {[%clk 0:01:02]} 30. Qe6+ {[%clk 0:00:38]}  Qf7 {[%clk 0:00:52]} 31. Qc8+ {[%clk 0:00:37]}  Kg7 {[%clk 0:00:51]} 32. Qg4+ {[%clk 0:00:35]}  Kh8 {[%clk 0:00:49]} 33. Re2 {[%clk 0:00:27]}  Nd4 {[%clk 0:00:42]} 34. Re4 {[%clk 0:00:20]}  Ne6 {[%clk 0:00:36]} 35. Re2 {[%clk 0:00:15]}  Qf6 {[%clk 0:00:34]} 36. Kh1 {[%clk 0:00:14]}  Rg7 {[%clk 0:00:31]} 37. Qh5+ {[%clk 0:00:14]}  Kg8 {[%clk 0:00:31]} 38. Qe8+ {[%clk 0:00:14]}  Nf8 {[%clk 0:00:30]} 39. f3 {[%clk 0:00:11]}  Qf4 {[%clk 0:00:27]} 40. Re4 {[%clk 0:00:09]}  Qg3 {[%clk 0:00:22]} 41. Re2 {[%clk 0:00:08]}  Rf7 {[%clk 0:00:20]} 42. Be1 {[%clk 0:00:07]}  Qg5 {[%clk 0:00:20]} 43. Qc8 {[%clk 0:00:05]}  Rxf3 {[%clk 0:00:17]} 44. Kh2 {[%clk 0:00:03]}  Qf4+ {[%clk 0:00:16]} 45. g3 {[%clk 0:00:02]}  hxg3+ {[%clk 0:00:15]} 46. Kg2 {[%clk 0:00:02]}  Rf1 {[%clk 0:00:14]} 0-1


[Site "https://www.chess.com"]

[Event "Titled Tuesday Blitz August 17 2021"]
[White "Sokolovsky, Yahli"]
[Black "Djordjevic, Vuk"]
[WhiteFideId "2820242"]
[BlackFideId "902098"]
[WhiteElo "1770"]
[BlackElo "2463"]
[Result "1-0"]
[Round "06"]
[TimeControl "180+1"]
[Date "2021.08.17"]
[WhiteClock "0:00:02"]
[BlackClock "0:00:03"]

1. b3 {[%clk 0:03:00]}  e5 {[%clk 0:02:59]} 2. Bb2 {[%clk 0:03:01]}  Nc6 {[%clk 0:02:59]} 3. c4 {[%clk 0:03:01]}  g6 {[%clk 0:02:58]} 4. Nc3 {[%clk 0:03:02]}  Bg7 {[%clk 0:02:58]} 5. Nf3 {[%clk 0:02:53]}  d6 {[%clk 0:02:56]} 6. e3 {[%clk 0:02:51]}  Nge7 {[%clk 0:02:52]} 7. d4 {[%clk 0:02:50]}  exd4 {[%clk 0:02:50]} 8. exd4 {[%clk 0:02:51]}  d5 {[%clk 0:02:47]} 9. cxd5 {[%clk 0:02:18]}  Nxd5 {[%clk 0:02:43]} 10. Bc4 {[%clk 0:02:17]}  Be6 {[%clk 0:02:36]} 11. Nxd5 {[%clk 0:02:11]}  Bxd5 {[%clk 0:02:35]} 12. Qe2+ {[%clk 0:02:12]}  Ne7 {[%clk 0:02:21]} 13. Ba3 {[%clk 0:02:10]}  Bxc4 {[%clk 0:02:13]} 14. bxc4 {[%clk 0:02:09]}  Bf6 {[%clk 0:02:08]} 15. O-O {[%clk 0:01:58]}  O-O {[%clk 0:02:07]} 16. Rad1 {[%clk 0:01:50]}  Re8 {[%clk 0:02:04]} 17. Qc2 {[%clk 0:01:33]}  Nf5 {[%clk 0:01:59]} 18. d5 {[%clk 0:01:31]}  Qd7 {[%clk 0:01:57]} 19. Bb2 {[%clk 0:01:28]}  Bxb2 {[%clk 0:01:35]} 20. Qxb2 {[%clk 0:01:29]}  b6 {[%clk 0:01:34]} 21. Ne5 {[%clk 0:01:21]}  Qd6 {[%clk 0:01:32]} 22. Ng4 {[%clk 0:01:20]}  Re7 {[%clk 0:01:05]} 23. Nf6+ {[%clk 0:01:20]}  Kh8 {[%clk 0:01:05]} 24. Rfe1 {[%clk 0:00:56]}  Ng7 {[%clk 0:00:49]} 25. Qc3 {[%clk 0:00:49]}  Rd8 {[%clk 0:00:38]} 26. Rxe7 {[%clk 0:00:46]}  Qxe7 {[%clk 0:00:37]} 27. Re1 {[%clk 0:00:46]}  Qf8 {[%clk 0:00:34]} 28. g4 {[%clk 0:00:32]}  Qd6 {[%clk 0:00:18]} 29. Ne8 {[%clk 0:00:26]}  Qf8 {[%clk 0:00:18]} 30. Nf6 {[%clk 0:00:08]}  a6 {[%clk 0:00:17]} 31. Qh3 {[%clk 0:00:07]}  h5 {[%clk 0:00:14]} 32. gxh5 {[%clk 0:00:06]}  Nxh5 {[%clk 0:00:04]} 33. Nxh5 {[%clk 0:00:05]}  gxh5 {[%clk 0:00:05]} 34. Qxh5+ {[%clk 0:00:06]}  Kg8 {[%clk 0:00:05]} 35. Kh1 {[%clk 0:00:06]}  Qd6 {[%clk 0:00:05]} 36. Rg1+ {[%clk 0:00:06]}  Kf8 {[%clk 0:00:05]} 37. Re1 {[%clk 0:00:03]}  Qf6 {[%clk 0:00:05]} 38. Qe2 {[%clk 0:00:01]}  b5 {[%clk 0:00:04]} 39. cxb5 {[%clk 0:00:01]}  axb5 {[%clk 0:00:04]} 40. Qe3 {[%clk 0:00:01]}  b4 {[%clk 0:00:04]} 41. Qe4 {[%clk 0:00:02]}  Qxf2 {[%clk 0:00:03]} 42. Qe7+ {[%clk 0:00:02]}  Kg7 {[%clk 0:00:04]} 43. Rg1+ {[%clk 0:00:03]}  Kh8 {[%clk 0:00:03]} 44. Qe5+ {[%clk 0:00:02]}  Kh7 {[%clk 0:00:03]} 45. Qh5# {[%clk 0:00:02]} 1-0


[Site "https://www.chess.com"]

[Event "Titled Tuesday Blitz August 17 2021"]
[White "Sonis, Francesco"]
[Black "Preotu, Razvan"]
[WhiteFideId "895733"]
[BlackFideId "2613280"]
[WhiteElo "2373"]
[BlackElo "2407"]
[Result "0-1"]
[Round "06"]
[TimeControl "180+1"]
[Date "2021.08.17"]
[WhiteClock "0:02:41"]
[BlackClock "0:01:47"]

1. d4 {[%clk 0:03:00]}  Nf6 {[%clk 0:02:59]} 2. c4 {[%clk 0:03:01]}  g6 {[%clk 0:02:59]} 3. Nc3 {[%clk 0:03:01]}  d5 {[%clk 0:02:59]} 4. cxd5 {[%clk 0:03:02]}  Nxd5 {[%clk 0:03:00]} 5. e4 {[%clk 0:03:03]}  Nxc3 {[%clk 0:03:00]} 6. bxc3 {[%clk 0:03:04]}  Bg7 {[%clk 0:03:01]} 7. Bc4 {[%clk 0:03:04]}  c5 {[%clk 0:03:00]} 8. Ne2 {[%clk 0:03:05]}  Nc6 {[%clk 0:03:01]} 9. Be3 {[%clk 0:03:05]}  O-O {[%clk 0:03:01]} 10. h4 {[%clk 0:03:04]}  Na5 {[%clk 0:02:53]} 11. Bd3 {[%clk 0:03:03]}  cxd4 {[%clk 0:02:52]} 12. cxd4 {[%clk 0:03:03]}  Nc6 {[%clk 0:02:52]} 13. Bb5 {[%clk 0:02:59]}  Qa5+ {[%clk 0:02:51]} 14. Kf1 {[%clk 0:02:58]}  Qxb5 {[%clk 0:02:51]} 15. h5 {[%clk 0:02:58]}  Rd8 {[%clk 0:02:45]} 16. hxg6 {[%clk 0:02:57]}  hxg6 {[%clk 0:02:40]} 17. Rb1 {[%clk 0:02:56]}  Qa6 {[%clk 0:02:40]} 18. Kg1 {[%clk 0:02:56]}  Qxa2 {[%clk 0:02:30]} 19. d5 {[%clk 0:02:56]}  Ne5 {[%clk 0:02:16]} 20. Bd4 {[%clk 0:02:55]}  Bg4 {[%clk 0:02:13]} 21. Rb2 {[%clk 0:02:49]}  Bxe2 {[%clk 0:02:10]} 22. Qxe2 {[%clk 0:02:47]}  Qc4 {[%clk 0:02:01]} 23. Qxc4 {[%clk 0:02:42]}  Nxc4 {[%clk 0:02:01]} 24. Bxg7 {[%clk 0:02:43]}  Kxg7 {[%clk 0:01:59]} 25. Rxb7 {[%clk 0:02:44]}  Rab8 {[%clk 0:01:54]} 26. Rxb8 {[%clk 0:02:42]}  Rxb8 {[%clk 0:01:55]} 27. Rh3 {[%clk 0:02:42]}  a5 {[%clk 0:01:46]} 28. Rc3 {[%clk 0:02:41]}  Rb4 {[%clk 0:01:46]} 29. f4 {[%clk 0:02:41]}  a4 {[%clk 0:01:47]} 0-1


[Site "https://www.chess.com"]

[Event "Titled Tuesday Blitz August 17 2021"]
[White "Stoyanov, Tsvetan"]
[Black "Siva Mahadevan"]
[WhiteFideId "2917173"]
[BlackFideId "25043153"]
[WhiteElo "2191"]
[BlackElo "2203"]
[Result "1-0"]
[Round "06"]
[TimeControl "180+1"]
[Date "2021.08.17"]
[WhiteClock "0:00:29"]
[BlackClock "0:00:05"]

1. e4 {[%clk 0:03:00]}  c5 {[%clk 0:02:58]} 2. Nf3 {[%clk 0:03:01]}  Nc6 {[%clk 0:02:57]} 3. d4 {[%clk 0:03:01]}  cxd4 {[%clk 0:02:58]} 4. Nxd4 {[%clk 0:03:02]}  Nf6 {[%clk 0:02:58]} 5. Nc3 {[%clk 0:03:02]}  d6 {[%clk 0:02:59]} 6. Bc4 {[%clk 0:03:01]}  Qb6 {[%clk 0:02:58]} 7. Nxc6 {[%clk 0:03:01]}  bxc6 {[%clk 0:02:57]} 8. O-O {[%clk 0:03:01]}  g6 {[%clk 0:02:57]} 9. Qe1 {[%clk 0:02:58]}  Ng4 {[%clk 0:02:43]} 10. h3 {[%clk 0:02:43]}  Ne5 {[%clk 0:02:42]} 11. Na4 {[%clk 0:02:42]}  Qd4 {[%clk 0:02:32]} 12. Bb3 {[%clk 0:02:40]}  Ba6 {[%clk 0:02:31]} 13. Bd2 {[%clk 0:02:28]}  Bxf1 {[%clk 0:01:18]} 14. Bc3 {[%clk 0:02:21]}  Qxc3 {[%clk 0:01:17]} 15. Qxc3 {[%clk 0:02:17]}  Bb5 {[%clk 0:01:17]} 16. f4 {[%clk 0:02:14]}  Bg7 {[%clk 0:01:18]} 17. fxe5 {[%clk 0:02:14]}  Bxe5 {[%clk 0:01:19]} 18. Qd2 {[%clk 0:02:14]}  O-O {[%clk 0:01:17]} 19. Nc3 {[%clk 0:02:14]}  Ba6 {[%clk 0:01:14]} 20. Nd1 {[%clk 0:02:02]}  c5 {[%clk 0:01:11]} 21. c3 {[%clk 0:01:55]}  e6 {[%clk 0:01:06]} 22. Ne3 {[%clk 0:01:53]}  Bf4 {[%clk 0:00:50]} 23. Qf2 {[%clk 0:01:52]}  Bh6 {[%clk 0:00:48]} 24. Ng4 {[%clk 0:01:50]}  Bg7 {[%clk 0:00:48]} 25. Nf6+ {[%clk 0:01:49]}  Kh8 {[%clk 0:00:48]} 26. Rd1 {[%clk 0:01:48]}  Rad8 {[%clk 0:00:47]} 27. e5 {[%clk 0:01:23]}  dxe5 {[%clk 0:00:32]} 28. Nd7 {[%clk 0:01:22]}  Rfe8 {[%clk 0:00:23]} 29. Nxc5 {[%clk 0:01:17]}  Rxd1+ {[%clk 0:00:20]} 30. Bxd1 {[%clk 0:01:18]}  Bb5 {[%clk 0:00:15]} 31. a4 {[%clk 0:01:06]}  Bc4 {[%clk 0:00:14]} 32. b3 {[%clk 0:00:58]}  Bd5 {[%clk 0:00:14]} 33. Qxf7 {[%clk 0:00:56]}  Rf8 {[%clk 0:00:14]} 34. Qe7 {[%clk 0:00:47]}  Bh6 {[%clk 0:00:13]} 35. Bf3 {[%clk 0:00:33]}  Bxf3 {[%clk 0:00:05]} 36. gxf3 {[%clk 0:00:32]}  Rxf3 {[%clk 0:00:06]} 37. Nxe6 {[%clk 0:00:30]}  Be3+ {[%clk 0:00:05]} 38. Kg2 {[%clk 0:00:29]}  Rf2+ {[%clk 0:00:05]} 39. Kg3 {[%clk 0:00:29]} 1-0


[Site "https://www.chess.com"]

[Event "Titled Tuesday Blitz August 17 2021"]
[White "Svane, Rasmus"]
[Black "Durarbayli, Vasif"]
[WhiteFideId "4657101"]
[BlackFideId "13402935"]
[WhiteElo "2669"]
[BlackElo "2522"]
[Result "1-0"]
[Round "06"]
[TimeControl "180+1"]
[Date "2021.08.17"]
[WhiteClock "0:00:07"]
[BlackClock "0:00:08"]

1. Nf3 {[%clk 0:03:00]}  d5 {[%clk 0:02:55]} 2. g3 {[%clk 0:03:01]}  g6 {[%clk 0:02:55]} 3. Bg2 {[%clk 0:03:01]}  Bg7 {[%clk 0:02:55]} 4. d4 {[%clk 0:03:01]}  Nf6 {[%clk 0:02:49]} 5. O-O {[%clk 0:03:02]}  O-O {[%clk 0:02:48]} 6. c3 {[%clk 0:03:02]}  a5 {[%clk 0:02:47]} 7. a4 {[%clk 0:03:02]}  Nbd7 {[%clk 0:02:44]} 8. Re1 {[%clk 0:02:58]}  Nb6 {[%clk 0:02:43]} 9. Nbd2 {[%clk 0:02:57]}  Bf5 {[%clk 0:02:37]} 10. Nh4 {[%clk 0:02:57]}  Be6 {[%clk 0:02:37]} 11. e4 {[%clk 0:02:55]}  dxe4 {[%clk 0:02:38]} 12. Nxe4 {[%clk 0:02:56]}  Nxe4 {[%clk 0:02:39]} 13. Bxe4 {[%clk 0:02:56]}  c6 {[%clk 0:02:39]} 14. Nf3 {[%clk 0:02:51]}  Qd7 {[%clk 0:02:33]} 15. h4 {[%clk 0:02:49]}  Bg4 {[%clk 0:02:26]} 16. Kg2 {[%clk 0:02:38]}  Nd5 {[%clk 0:02:24]} 17. Qd3 {[%clk 0:02:12]}  Rae8 {[%clk 0:02:12]} 18. Ne5 {[%clk 0:02:08]}  Bh3+ {[%clk 0:02:00]} 19. Kh2 {[%clk 0:02:07]}  Qc8 {[%clk 0:01:50]} 20. Qf3 {[%clk 0:02:04]}  Be6 {[%clk 0:01:47]} 21. h5 {[%clk 0:01:57]}  f6 {[%clk 0:01:26]} 22. Nxg6 {[%clk 0:01:07]}  hxg6 {[%clk 0:01:25]} 23. h6 {[%clk 0:01:07]}  Bg4 {[%clk 0:00:52]} 24. Qd3 {[%clk 0:01:03]}  Bf5 {[%clk 0:00:30]} 25. Bxf5 {[%clk 0:00:38]}  gxf5 {[%clk 0:00:23]} 26. hxg7 {[%clk 0:00:37]}  Kxg7 {[%clk 0:00:24]} 27. Kg2 {[%clk 0:00:34]}  Rh8 {[%clk 0:00:23]} 28. Bd2 {[%clk 0:00:34]}  e6 {[%clk 0:00:17]} 29. c4 {[%clk 0:00:29]}  Nb4 {[%clk 0:00:17]} 30. Bxb4 {[%clk 0:00:30]}  axb4 {[%clk 0:00:18]} 31. Qf3 {[%clk 0:00:22]}  Qd7 {[%clk 0:00:16]} 32. Rad1 {[%clk 0:00:21]}  Qd6 {[%clk 0:00:15]} 33. b3 {[%clk 0:00:20]}  Rh6 {[%clk 0:00:13]} 34. d5 {[%clk 0:00:19]}  cxd5 {[%clk 0:00:06]} 35. cxd5 {[%clk 0:00:19]}  e5 {[%clk 0:00:06]} 36. Qxf5 {[%clk 0:00:19]}  Reh8 {[%clk 0:00:06]} 37. Qg4+ {[%clk 0:00:18]}  Kf7 {[%clk 0:00:06]} 38. Qf3 {[%clk 0:00:18]}  Rh2+ {[%clk 0:00:05]} 39. Kg1 {[%clk 0:00:18]}  Qd7 {[%clk 0:00:05]} 40. Kf1 {[%clk 0:00:13]}  e4 {[%clk 0:00:01]} 41. Rxe4 {[%clk 0:00:11]}  Rh1+ {[%clk 0:00:02]} 42. Ke2 {[%clk 0:00:11]}  Rxd1 {[%clk 0:00:03]} 43. Kxd1 {[%clk 0:00:12]}  Qxd5+ {[%clk 0:00:03]} 44. Ke2 {[%clk 0:00:11]}  Rd8 {[%clk 0:00:03]} 45. Kf1 {[%clk 0:00:11]}  Qc6 {[%clk 0:00:03]} 46. Kg2 {[%clk 0:00:11]}  Rd2 {[%clk 0:00:03]} 47. Rxb4 {[%clk 0:00:11]}  Rb2 {[%clk 0:00:01]} 48. Qxc6 {[%clk 0:00:10]}  bxc6 {[%clk 0:00:02]} 49. Rb6 {[%clk 0:00:09]}  c5 {[%clk 0:00:03]} 50. Rb5 {[%clk 0:00:09]}  Rc2 {[%clk 0:00:03]} 51. a5 {[%clk 0:00:10]}  Ke6 {[%clk 0:00:03]} 52. a6 {[%clk 0:00:09]}  Ra2 {[%clk 0:00:04]} 53. Rxc5 {[%clk 0:00:10]}  Rxa6 {[%clk 0:00:04]} 54. Rb5 {[%clk 0:00:10]}  Ra2 {[%clk 0:00:05]} 55. Kf3 {[%clk 0:00:11]}  Rb2 {[%clk 0:00:05]} 56. Rb6+ {[%clk 0:00:10]}  Ke5 {[%clk 0:00:05]} 57. Rb5+ {[%clk 0:00:10]}  Ke6 {[%clk 0:00:06]} 58. g4 {[%clk 0:00:11]}  Rb1 {[%clk 0:00:07]} 59. Kf4 {[%clk 0:00:11]}  Rf1 {[%clk 0:00:07]} 60. f3 {[%clk 0:00:11]}  Rd1 {[%clk 0:00:07]} 61. Rb6+ {[%clk 0:00:11]}  Kf7 {[%clk 0:00:07]} 62. b4 {[%clk 0:00:08]}  Re1 {[%clk 0:00:05]} 63. Rb5 {[%clk 0:00:07]}  Ke6 {[%clk 0:00:05]} 64. Rb6+ {[%clk 0:00:06]}  Kf7 {[%clk 0:00:05]} 65. Rb8 {[%clk 0:00:07]}  Re2 {[%clk 0:00:03]} 66. b5 {[%clk 0:00:07]}  Rb2 {[%clk 0:00:03]} 67. b6 {[%clk 0:00:07]}  Rb5 {[%clk 0:00:03]} 68. Ke4 {[%clk 0:00:07]}  Kg7 {[%clk 0:00:02]} 69. f4 {[%clk 0:00:06]}  Kf7 {[%clk 0:00:02]} 70. f5 {[%clk 0:00:05]}  Kg7 {[%clk 0:00:02]} 71. Kd4 {[%clk 0:00:05]}  Kh6 {[%clk 0:00:01]} 72. b7 {[%clk 0:00:04]}  Rb1 {[%clk 0:00:02]} 73. Rh8+ {[%clk 0:00:04]}  Kg5 {[%clk 0:00:02]} 74. b8=Q {[%clk 0:00:04]}  Rd1+ {[%clk 0:00:03]} 75. Ke3 {[%clk 0:00:05]}  Re1+ {[%clk 0:00:03]} 76. Kf2 {[%clk 0:00:05]}  Rf1+ {[%clk 0:00:03]} 77. Kxf1 {[%clk 0:00:05]}  Kxg4 {[%clk 0:00:04]} 78. Rg8+ {[%clk 0:00:05]}  Kf3 {[%clk 0:00:05]} 79. Qb3+ {[%clk 0:00:05]}  Kf4 {[%clk 0:00:05]} 80. Rg2 {[%clk 0:00:04]}  Ke5 {[%clk 0:00:05]} 81. Qb2+ {[%clk 0:00:05]}  Ke4 {[%clk 0:00:05]} 82. Rc2 {[%clk 0:00:06]}  Kf3 {[%clk 0:00:05]} 83. Rc3+ {[%clk 0:00:06]}  Kg4 {[%clk 0:00:06]} 84. Qb4+ {[%clk 0:00:06]}  Kh5 {[%clk 0:00:07]} 85. Rc6 {[%clk 0:00:07]}  Kg5 {[%clk 0:00:07]} 86. Rxf6 {[%clk 0:00:07]}  Kh5 {[%clk 0:00:07]} 87. Ke2 {[%clk 0:00:07]}  Kg5 {[%clk 0:00:07]} 88. Rg6+ {[%clk 0:00:08]}  Kh5 {[%clk 0:00:08]} 89. Qg4# {[%clk 0:00:07]} 1-0


[Site "https://www.chess.com"]

[Event "Titled Tuesday Blitz August 17 2021"]
[White "Tari, Aryan"]
[Black "Moskalenko, Alexander"]
[WhiteFideId "1510045"]
[BlackFideId "4155351"]
[WhiteElo "2656"]
[BlackElo "2495"]
[Result "0-1"]
[Round "06"]
[TimeControl "180+1"]
[Date "2021.08.17"]
[WhiteClock "0:00:03"]
[BlackClock "0:00:56"]

1. e4 {[%clk 0:02:58]}  e6 {[%clk 0:03:00]} 2. d4 {[%clk 0:02:49]}  d5 {[%clk 0:03:01]} 3. e5 {[%clk 0:02:50]}  c5 {[%clk 0:03:00]} 4. c3 {[%clk 0:02:50]}  Nc6 {[%clk 0:03:00]} 5. Nf3 {[%clk 0:02:51]}  Bd7 {[%clk 0:02:59]} 6. Be2 {[%clk 0:02:44]}  Nh6 {[%clk 0:02:42]} 7. Na3 {[%clk 0:02:34]}  cxd4 {[%clk 0:02:39]} 8. cxd4 {[%clk 0:02:34]}  Bb4+ {[%clk 0:02:39]} 9. Bd2 {[%clk 0:02:32]}  Qa5 {[%clk 0:02:40]} 10. Nc2 {[%clk 0:02:27]}  Bxd2+ {[%clk 0:02:38]} 11. Qxd2 {[%clk 0:02:28]}  Qxd2+ {[%clk 0:02:37]} 12. Kxd2 {[%clk 0:02:28]}  Ke7 {[%clk 0:02:27]} 13. Ne3 {[%clk 0:02:27]}  f6 {[%clk 0:02:25]} 14. Bb5 {[%clk 0:02:14]}  Nxe5 {[%clk 0:02:24]} 15. dxe5 {[%clk 0:02:09]}  Bxb5 {[%clk 0:02:23]} 16. Nd4 {[%clk 0:02:09]}  Bd7 {[%clk 0:02:22]} 17. f4 {[%clk 0:02:02]}  fxe5 {[%clk 0:02:21]} 18. fxe5 {[%clk 0:02:03]}  Nf7 {[%clk 0:02:19]} 19. Rhe1 {[%clk 0:02:00]}  Rac8 {[%clk 0:02:18]} 20. b3 {[%clk 0:01:52]}  Rhf8 {[%clk 0:02:13]} 21. h4 {[%clk 0:01:48]}  Nxe5 {[%clk 0:02:10]} 22. Nxd5+ {[%clk 0:01:43]}  exd5 {[%clk 0:02:08]} 23. Rxe5+ {[%clk 0:01:42]}  Kd6 {[%clk 0:02:09]} 24. Rg5 {[%clk 0:01:32]}  g6 {[%clk 0:02:09]} 25. Re1 {[%clk 0:01:30]}  Rf2+ {[%clk 0:02:07]} 26. Re2 {[%clk 0:01:30]}  Rxe2+ {[%clk 0:02:07]} 27. Kxe2 {[%clk 0:01:25]}  Re8+ {[%clk 0:02:06]} 28. Kd3 {[%clk 0:01:17]}  Re1 {[%clk 0:02:05]} 29. h5 {[%clk 0:01:15]}  Be8 {[%clk 0:02:05]} 30. Nf3 {[%clk 0:01:08]}  Rh1 {[%clk 0:01:58]} 31. Kd4 {[%clk 0:01:03]}  Rd1+ {[%clk 0:01:58]} 32. Ke3 {[%clk 0:01:02]}  b6 {[%clk 0:01:48]} 33. Kf4 {[%clk 0:00:55]}  Ra1 {[%clk 0:01:40]} 34. Re5 {[%clk 0:00:32]}  Bd7 {[%clk 0:01:40]} 35. h6 {[%clk 0:00:24]}  Rh1 {[%clk 0:01:39]} 36. Kg5 {[%clk 0:00:23]}  Rh5+ {[%clk 0:01:39]} 37. Kf6 {[%clk 0:00:23]}  Rxh6 {[%clk 0:01:40]} 38. Ng5 {[%clk 0:00:22]}  Rh2 {[%clk 0:01:38]} 39. Nf7+ {[%clk 0:00:20]}  Kc6 {[%clk 0:01:38]} 40. Re7 {[%clk 0:00:20]}  Bf5 {[%clk 0:01:23]} 41. g4 {[%clk 0:00:21]}  Be4 {[%clk 0:01:23]} 42. Ne5+ {[%clk 0:00:18]}  Kd6 {[%clk 0:01:20]} 43. Rd7+ {[%clk 0:00:15]}  Kc5 {[%clk 0:01:21]} 44. Rxa7 {[%clk 0:00:15]}  h5 {[%clk 0:01:21]} 45. g5 {[%clk 0:00:14]}  Rf2+ {[%clk 0:01:19]} 46. Kg7 {[%clk 0:00:12]}  Rf5 {[%clk 0:01:16]} 47. Nf7 {[%clk 0:00:12]}  h4 {[%clk 0:01:14]} 48. Rc7+ {[%clk 0:00:11]}  Kd4 {[%clk 0:01:13]} 49. Kxg6 {[%clk 0:00:03]}  h3 {[%clk 0:01:13]} 50. Nd6 {[%clk 0:00:02]}  h2 {[%clk 0:00:59]} 51. Nxf5+ {[%clk 0:00:03]}  Bxf5+ {[%clk 0:00:58]} 52. Kxf5 {[%clk 0:00:04]}  h1=Q {[%clk 0:00:59]} 53. g6 {[%clk 0:00:03]}  Qe4+ {[%clk 0:00:56]} 0-1


[Site "https://www.chess.com"]